[Event "44th Chess Olympiad Open 2022"]
[Site "Chennai"]
[Date "2022.08.01"]
[Round "4.43"]
[White "Wu, Bing-Shen"]
[Black "Shishkov, Andrei"]
[Result "0-1"]
[WhiteElo "1660"]
[BlackElo "2366"]
[Annotator "TA"]
[PlyCount "128"]
[EventDate "2022.??.??"]
[TimeControl "60"]

{[%evp 14,128,0,0,0,0,-3,0,-18,-20,-13,-19,37,-13,-5,-14,0,0,0,0,0,0,0,0,11,0,
0,0,0,0,0,0,0,0,0,-11,-3,-5,-10,-15,-6,-33,-31,-33,-29,-43,-30,-49,0,0,0,0,0,0,
0,0,0,0,0,0,0,-45,-41,-47,-41,-37,-41,-41,0,0,0,-36,-45,-53,0,-53,-53,-53,-54,
-60,-56,-56,-53,-79,-79,-97,-97,-103,-110,-103,-103,-103,-95,-110,-101,-331,
-331,-310,-302,-294,-295,-29960,-29971,-29968,-29972,-29972,-29973,-29969,
-29969,-29963,-12847,-12848,-12842,-29973,-29974,-29972,-6437]} 1. d4 {[%emt 0:
00:00]} Nf6 {[%emt 0:00:04]} 2. Nf3 {[%emt 0:00:15]} d5 {[%emt 0:00:14]} 3. c4
{[%emt 0:00:08]} e6 {[%emt 0:00:03]} 4. g3 {[%emt 0:00:17]} dxc4 {[%emt 0:00:
00]} 5. Bg2 {[%emt 0:00:07]} Nc6 {[%emt 0:00:26]} 6. O-O {[%emt 0:00:09]} Rb8 {
[%emt 0:00:19]} 7. Nc3 {[%emt 0:00:15]} b5 {[%emt 0:01:04]} 8. Ne5 {[%emt 0:00:
00]} Nxe5 {[%emt 0:00:41] E04: Open Catalan: 5 Nf3.} (8... Nxd4 $2 9. e3 $18)
9. dxe5 {[%emt 0:00:10]} Nd7 {[%emt 0:00:08]} 10. Bc6 {[%emt 0:00:51]} a6 {
[%emt 0:05:59] The position is equal.} 11. a4 {[%emt 0:00:27][%cal Ra4b5]} b4 {
[%emt 0:02:58]} 12. Ne4 {[%emt 0:00:10] Black must now prevent a5.} Rb6 {
[%emt 0:21:11]} (12... Bb7 $11 13. Bxb7 (13. Bg5 Qc8 $17) 13... Rxb7) 13. Bxd7+
{[%emt 0:06:13]} (13. Bg5 $14 Be7 14. Bxd7+ Qxd7 15. Qc1) 13... Qxd7 $11 {
[%emt 0:07:18] [#]} 14. Be3 $146 {[%emt 0:04:29]} ({Predecessor:} 14. Qc2 Qc6
15. Bg5 Be7 16. Bxe7 Kxe7 17. f3 a5 18. Qd2 h6 19. Rfd1 Rb8 20. Qf4 {0-1 (31)
Li,X (2112)-Zhang,X (2374) China 2016}) 14... Qxd1 {[%emt 0:05:42]} 15. Rfxd1 {
[%emt 0:00:27]} Rc6 {[%emt 0:00:12]} 16. a5 {[%emt 0:21:25]} c3 {[%emt 0:06:08]
} 17. bxc3 {[%emt 0:04:34]} bxc3 {[%emt 0:00:03]} 18. Rdc1 {[%emt 0:07:46]} Bb4
{[%emt 0:20:55]} 19. Ra4 {[%emt 0:00:53]} Rc4 {[%emt 0:00:53]} 20. Bc5 {
[%emt 0:00:08]} Rxe4 {[%emt 0:01:40]} 21. Rxb4 {[%emt 0:03:39]} Rxb4 {[%emt 0:
00:00]} ({Much less strong is} 21... Rxe2 22. Rxc3 Rxe5 23. Bd6 $1 Re1+ 24. Kg2
$14) 22. Bxb4 {[%emt 0:00:08] Endgame KRB-KRB} Bb7 {[%emt 0:02:03]} 23. Rxc3 {
[%emt 0:00:44]} Kd7 {[%emt 0:00:05]} 24. f3 {[%emt 0:04:20]} Rb8 {[%emt 0:03:
44]} 25. Rc4 {[%emt 0:07:50]} Bd5 {[%emt 0:01:24]} 26. Rd4 {[%emt 0:00:00]} Rb5
{[%emt 0:02:15]} 27. Bd2 {[%emt 0:04:57]} c5 {[%emt 0:01:13]} 28. Rd3 {[%emt 0:
01:15]} Kc7 {[%emt 0:08:58]} 29. e4 {[%emt 0:04:11]} Bc4 {[%emt 0:00:00]} 30.
Rd6 {[%emt 0:03:00]} f6 {[%emt 0:03:40]} (30... Rb3 $15) 31. f4 {[%emt 0:12:44]
} Rb3 {[%emt 0:01:08]} 32. Kf2 {[%emt 0:01:32]} h5 {[%emt 0:00:00]} 33. Be3 {
[%emt 0:05:25]} Rb5 {[%emt 0:00:36]} 34. Bd2 {[%emt 0:00:07]} Rb2 {[%emt 0:00:
22]} 35. Ke3 {[%emt 0:04:00]} fxe5 {[%emt 0:00:54]} 36. fxe5 {[%emt 0:00:18]}
g5 {[%emt 0:00:14]} 37. h4 {[%emt 0:01:23]} Rb3+ {[%emt 0:00:00]} 38. Kf2 {
[%emt 0:00:06]} g4 {[%emt 0:00:54] Hoping for ...Rf3+.} 39. Be3 $1 {[%emt 0:02:
12]} Rb5 {[%emt 0:00:41]} 40. Bd2 {[%emt 0:00:11]} Rb3 {[%emt 0:00:00]} 41. Be3
$1 {[%emt 0:30:01]} Rb5 {[%emt 0:12:10]} 42. Bd2 {[%emt 0:00:00]} Rb1 {[%emt 0:
00:41]} 43. Be3 {[%emt 0:00:00]} Rf1+ $1 {[%emt 0:01:38]} 44. Kg2 {[%emt 0:00:
00]} Re1 $1 {[%emt 0:02:08]} 45. Bxc5 {[%emt 0:00:00]} Rxe4 {[%emt 0:00:10]}
46. Rb6 {[%emt 0:00:00]} Re2+ {[%emt 0:01:15]} 47. Kg1 {[%emt 0:00:00]} Ra2 {
[%emt 0:00:35]} 48. Bd6+ {[%emt 0:00:00]} Kd7 {[%emt 0:00:00]} 49. Rb7+ {
[%emt 0:00:00]} Kc6 {[%emt 0:00:30]} 50. Rf7 {[%emt 0:00:00]} Rxa5 {[%emt 0:02:
07]} 51. Kf2 {[%emt 0:00:00]} Kd5 {[%emt 0:00:26]} 52. Ke3 {[%emt 0:00:00]} Rb5
{[%emt 0:07:40] Strongly threatening ...Rb3+.} 53. Kf4 {[%emt 0:00:00]} Rb3 {
[%emt 0:00:07] aiming for ...Rf3+.} 54. Kg5 $2 {[%emt 0:00:00] Now White is
beyond hope.} (54. Rc7 $17) 54... Rxg3 $19 {[%emt 0:00:45]} 55. Kxh5 {[%emt 0:
00:00]} Rf3 {[%emt 0:01:25]} 56. Rg7 {[%emt 0:00:00]} g3 {[%emt 0:00:06][%cal
Yg4g3,Yg3g2] And now ...a5 would win.} 57. Rg5 $2 {[%emt 0:00:00]} (57. Bc7 $19
) 57... Rf5 {[%emt 0:01:24]} 58. Bb8 {[%emt 0:00:00]} g2 {[%emt 0:00:23]} 59.
Ba7 {[%emt 0:00:06]} Kxe5 {[%emt 0:00:47]} 60. Kg4 {[%emt 0:01:00]} Rxg5+ {
[%emt 0:00:56]} 61. hxg5 {[%emt 0:00:32]} Bd3 {[%emt 0:00:00]} (61... a5 $142
62. Kf3 a4 63. g6 Bd5+ 64. Kf2 Kf6 65. Bd4+ Kxg6 66. Bb2 Kf5 67. Kg1 e5 68. Kf2
Bf3 $1 69. Kg1 e4 70. Bc1 Ke6 71. Kf2 Kd5 72. Kg1 Ke6 73. Kf2 Kd5 74. Kg1 Ke6)
62. Kg3 {[%emt 0:00:43]} Be4 {[%emt 0:00:00]} 63. g6 {[%emt 0:03:19] [#]} Kf6
$1 {[%emt 0:00:17]} 64. Kf4 {[%emt 0:00:00]} Bd5 {[%emt 0:00:19] Weighted
Error Value: White=0.36/Black=0.11 (very precise)} 0-1

[Event "44th Chess Olympiad Open 2022"]
[Site "Chennai"]
[Date "2022.08.01"]
[Round "4.44"]
[White "Fluvia Poyatos, Jordi"]
[Black "Nissinen, Niilo Man"]
[Result "1/2-1/2"]
[WhiteElo "2451"]
[BlackElo "1693"]
[Annotator "TA"]
[PlyCount "156"]
[EventDate "2022.??.??"]
[TimeControl "60"]

{[%evp 33,155,25,35,0,88,88,88,49,56,60,56,56,72,52,83,50,69,-14,278,281,285,
270,386,386,386,355,372,366,550,254,220,6,5,0,17,19,21,7,8,0,118,121,132,8,8,0,
0,0,0,0,0,-16,-8,-85,0,0,0,-222,-229,-123,-8,-64,-71,-68,-64,-64,-66,-67,-75,
-68,-68,-72,-68,-81,-68,-69,-80,-76,0,-8,-8,-8,-8,-8,-8,-8,-8,-8,-8,-8,-8,-8,
-8,-8,-8,-8,-8,-8,-8,-8,-8,-8,-8,-8,-8,-8,-8,-8,-8,-8,-8,-8,0,-8,-8,-8,0,-8,-8,
-8,0,-8,-8,-265]} 1. e4 {[%emt 0:00:04]} c5 {[%emt 0:00:04]} 2. Nf3 {[%emt 0:
00:00][%cal Yg1f3,Yf3d4,Yd4b5,Yb5a3,Ya3c2]} Nc6 {[%emt 0:00:16]} 3. d4 {
[%emt 0:00:08]} cxd4 {[%emt 0:00:06]} 4. Nxd4 {[%emt 0:00:05]} Nf6 {[%emt 0:00:
00]} 5. Nc3 {[%emt 0:00:08]} e5 {[%emt 0:00:06]} 6. Ndb5 {[%emt 0:00:14]} d6 {
[%emt 0:00:13]} 7. Bg5 {[%emt 0:00:31]} a6 {[%emt 0:00:11]} 8. Na3 {[%emt 0:00:
00]} b5 {[%emt 0:00:08]} 9. Nd5 {[%emt 0:00:37]} Be7 {[%emt 0:00:10]} 10. Bxf6
{[%emt 0:00:21]} Bxf6 {[%emt 0:00:07]} 11. c3 {[%emt 0:00:16]} O-O {[%emt 0:00:
21]} 12. Nc2 {[%emt 0:00:31]} Bg5 {[%emt 0:01:09]} 13. a4 {[%emt 0:00:00]} bxa4
{[%emt 0:00:07]} 14. Rxa4 {[%emt 0:00:26]} a5 {[%emt 0:00:56]} 15. Bc4 {
[%emt 0:01:16]} Rb8 {[%emt 0:00:18]} 16. Ra2 {[%emt 0:01:30]} Kh8 {[%emt 0:01:
21]} 17. Nce3 {[%emt 0:01:35]} g6 {[%emt 0:10:31]} 18. h4 {[%emt 0:00:00] B33:
Sicilian: Pelikan and Sveshnikov Variations.} Bh6 {[%emt 0:08:58]} (18... Bxh4
$11 19. g3 Bg5) 19. h5 $16 {[%emt 0:04:58]} Qg5 {[%emt 0:01:51] [#]} 20. Nc7
$146 {[%emt 0:14:47] Pair of Knights! White is better.} ({Predecessor:} 20. Qf3
f5 21. hxg6 f4 22. Qh5 Qxh5 23. Rxh5 fxe3 24. Rxh6 exf2+ 25. Kf1 Kg7 26. Rxh7+
Kxg6 {1-0 (53) Xu,Y-Bharadwaj,A (1903) Vung Tau 2008}) 20... Qd8 {[%emt 0:03:
16] [#] aiming for ...Bxe3.} 21. hxg6 $1 {[%emt 0:04:12]} fxg6 {[%emt 0:00:21]}
22. Rxh6 {[%emt 0:02:13]} Qxc7 {[%emt 0:00:13]} 23. b3 {[%emt 0:01:25]} Ne7 {
[%emt 0:10:52]} 24. Rd2 $40 {[%emt 0:13:57] Black needs to defend precisely.
White is more active.} Rb6 {[%emt 0:04:49]} 25. Ke2 {[%emt 0:15:42]} (25. Qe2
$14) 25... Bb7 $2 {[%emt 0:15:03]} (25... Ng8 $1 $11 {and Black has nothing to
worry.} 26. Rh4 Nf6) 26. Qh1 $18 {[%emt 0:07:06][%csl Gh1][%cal Rh6h7]} Ng8 {
[%emt 0:01:01]} 27. Rxg6 {[%emt 0:00:00]} Bxe4 {[%emt 0:00:42]} (27... a4 $142)
28. Rxg8+ {[%emt 0:01:10]} Rxg8 {[%emt 0:00:06]} 29. Bxg8 {[%emt 0:00:28]} Kxg8
{[%emt 0:00:15]} 30. Qh4 {[%emt 0:00:16]} Bb7 {[%emt 0:13:40]} (30... Bg6 $142
31. Nd5 Qb8 32. Nxb6 Qxb6) 31. Qg5+ {[%emt 0:03:51]} (31. Nf5 $142 {Strongly
threatening Qf6.} d5 32. Ne7+ (32. Qg5+ Kf8 $11) 32... Kf8 33. Nxd5 Bxd5 34.
Rxd5) 31... Kf8 {[%emt 0:07:07]} 32. Nf5 $2 {[%emt 0:05:44] Prevents Qe7.} (32.
c4 $18) 32... d5 $1 $11 {[%emt 0:01:17]} 33. Rd3 {[%emt 0:06:29][%cal Yf5d4]}
Ba6 {[%emt 0:05:02]} 34. c4 $1 {[%emt 0:00:18][%cal Yf5d4] Nd4! is the strong
threat.} Rg6 {[%emt 0:00:00]} 35. Qh4 {[%emt 0:02:38]} (35. Qd2 $5 {[%cal
Rd3d5]} Bb7 36. Rg3 $14 (36. cxd5 Ba6 $17)) 35... d4 {[%emt 0:04:13]} 36. Rf3 {
[%emt 0:06:00]} Bb7 {[%emt 0:00:00]} (36... Ke8 $11 {remains equal.}) 37. Rg3
$1 $16 {[%emt 0:00:40]} Rxg3 {[%emt 0:00:27]} 38. Qf6+ {[%emt 0:00:59]} (38.
fxg3 $6 Ke8 $11) (38. Qxg3 $16 Be4 39. Nxd4) 38... Ke8 $1 $11 {[%emt 0:01:42]}
39. fxg3 {[%emt 0:01:36] Endgame Black must now prevent Ng7+. KQB-KQN. Really
sharp!} Kd7 $1 {[%emt 0:04:12]} 40. Qe7+ {[%emt 0:01:38]} Kc6 {[%emt 0:01:49]
Threatens to win with ...Qxe7.} 41. Qe8+ {[%emt 0:09:31]} Kb6 {[%emt 0:00:12]}
42. Qb5+ {[%emt 0:00:51]} Ka7 {[%emt 0:00:09]} 43. Kd2 {[%emt 0:01:28]} (43. g4
$11 {keeps the balance.}) 43... Bc8 {[%emt 0:07:34]} (43... Bxg2 $17 44. Qe8
Qc5 45. Qd7+ Ka6 46. Qd6+ Qb6 47. Qxe5 Qb4+ 48. Ke2 d3+ 49. Kxd3 Qxb3+ 50. Kd2
Qa2+ 51. Ke1 Qxc4 52. Qd6+ Ka7 53. Qd7+ (53. Ne3 $2 Qc3+ 54. Ke2 Bb7 $17) 53...
Kb6 54. Qd6+ (54. Ne3 $2 Qc3+ 55. Ke2 Be4 $17) 54... Qc6 55. Qd8+ Qc7 56. Qf6+
Ka7) 44. g4 {[%emt 0:02:35]} h5 {[%emt 0:01:00]} 45. Ng3 $2 {[%emt 0:03:43]} (
45. Qd5 $11 {and White stays safe.} Bb7 46. Qe6) 45... hxg4 $19 {[%emt 0:02:32]
} 46. Ne4 {[%emt 0:00:36] [#]} ({White should try} 46. Ne2 $19) 46... Bb7 {
[%emt 0:00:00]} (46... Ba6 $1 $17 {[%cal Ra6b5]} 47. Qa4 Bb7) 47. Nc5 {[%emt 0:
01:21]} (47. Nf6 $1 $11) 47... Qb6 $1 $15 {[%emt 0:02:15]} (47... Bxg2 48. Qa6+
Kb8 49. Qb5+ Ka8 50. Qa6+ Qa7 51. Qc8+ Qb8 52. Qa6+ Qa7 53. Qc8+ Qb8 54. Qa6+
Qa7 $11) 48. Qxb6+ {[%emt 0:03:12]} Kxb6 $17 {[%emt 0:00:05] KB-KN} 49. Nd7+ {
[%emt 0:00:00]} Kc7 {[%emt 0:00:07]} 50. Nxe5 {[%emt 0:00:05]} g3 {[%emt 0:00:
06]} (50... Bxg2 51. Nxg4 Kd6 52. Kd3 $11) 51. Kd3 {[%emt 0:02:38]} Bxg2 {
[%emt 0:00:00]} 52. Kxd4 {[%emt 0:00:17]} Kd6 {[%emt 0:02:37]} 53. Nd3 $1 {
[%emt 0:05:15]} ({Not} 53. c5+ $2 Kc7 54. Nd3 {[#]} Bd5 $1 $19) 53... Bf1 {
[%emt 0:05:10]} 54. Nf4 {[%emt 0:00:06]} Kc6 {[%emt 0:01:10]} ({Of course not} 
54... g2 55. Nxg2 Bxg2 56. Kc3 $11) 55. Ke3 {[%emt 0:00:41]} g2 {[%emt 0:02:33]
} (55... Kc5 $17 {Hoping for ...Kb4.} 56. Nd5 (56. Kf3 $2 Kb4 $19) 56... Bg2)
56. Nxg2 {[%emt 0:02:28]} Bxg2 $11 {[%emt 0:00:07] KB-KPP} 57. Kd4 {[%emt 0:00:
00]} Bf1 {[%emt 0:00:09]} 58. c5 {[%emt 0:00:36]} Kb5 {[%emt 0:00:15]} 59. Kc3
{[%emt 0:00:10]} Kxc5 {[%emt 0:00:25] KB-KP} (59... Bh3 $5 60. c6 (60. Kb2 $2
Bc8 $19) 60... Bf5 $11) 60. Kb2 {[%emt 0:00:07]} Kb4 {[%emt 0:00:25]} 61. Ka2 {
[%emt 0:01:38]} Kc3 {[%emt 0:01:04]} 62. Ka3 {[%emt 0:00:32]} Bb5 {[%emt 0:00:
00]} 63. Ka2 {[%emt 0:00:08]} Bd7 {[%emt 0:00:52]} 64. Ka3 {[%emt 0:01:24]} Be8
{[%emt 0:00:07]} 65. Ka2 {[%emt 0:00:14]} Kc2 {[%emt 0:00:04]} 66. Ka1 {
[%emt 0:00:14]} Bd7 {[%emt 0:02:20]} 67. Ka2 {[%emt 0:00:08]} Kc1 {[%emt 0:00:
00]} 68. Ka1 {[%emt 0:00:58]} Bc6 {[%emt 0:00:29]} 69. Ka2 {[%emt 0:00:06]} Kc2
{[%emt 0:00:03]} 70. Ka1 {[%emt 0:00:09]} Kc3 {[%emt 0:02:27]} 71. Ka2 {
[%emt 0:00:22]} Bd5 {[%emt 0:00:06] ( -> ...a4)} 72. Ka3 {[%emt 0:00:45]} Bc6 {
[%emt 0:00:16]} 73. Ka2 {[%emt 0:00:04]} Be8 {[%emt 0:01:07]} 74. Ka3 {[%emt 0:
00:00]} Bb5 {[%emt 0:00:15]} 75. Ka2 {[%emt 0:00:06]} Kc2 {[%emt 0:00:02]} 76.
Ka1 {[%emt 0:00:09]} Bd7 {[%emt 0:01:14]} 77. Ka2 {[%emt 0:00:08]} Be6 {
[%emt 0:00:02]} 78. Ka1 $2 {[%emt 0:00:11]} (78. Ka3 $11 {and White is okay.})
78... Bxb3 {[%emt 0:00:05] What a fight! Weighted Error Value: White=0.41/
Black=0.38} 1/2-1/2

[Event "44th Chess Olympiad Open 2022"]
[Site "Chennai"]
[Date "2022.08.01"]
[Round "4.44"]
[White "Ribera Veganzones, Serni"]
[Black "Kannappan, Thanneermalai"]
[Result "1-0"]
[WhiteElo "2203"]
[BlackElo "1699"]
[Annotator "NA RC"]
[PlyCount "103"]
[EventDate "2022.??.??"]
[TimeControl "60"]

1. e4 {[%emt 0:00:04]} e5 {[%emt 0:00:12]} 2. Nf3 {[%emt 0:00:20]} Nc6 {
[%emt 0:00:07]} 3. Bb5 {[%emt 0:00:16]} a6 {[%emt 0:00:21]} 4. Ba4 {[%emt 0:00:
00]} Nf6 {[%emt 0:00:23]} 5. O-O {[%emt 0:00:32]} Be7 {[%emt 0:00:43]} 6. Re1 {
[%emt 0:00:25]} b5 {[%emt 0:01:10]} 7. Bb3 {[%emt 0:00:25]} O-O {[%emt 0:00:16]
} 8. c3 {[%emt 0:00:47]} d5 {[%emt 0:00:57]} 9. exd5 {[%emt 0:00:29]} Nxd5 {
[%emt 0:00:08]} 10. Nxe5 {[%emt 0:00:44]} Nxe5 {[%emt 0:00:21]} 11. Rxe5 {
[%emt 0:00:12]} c6 {[%emt 0:00:15]} 12. Re1 {[%emt 0:00:34]} Bd6 {[%emt 0:00:
00]} 13. d3 {[%emt 0:01:07]} Qh4 {[%emt 0:00:52]} 14. g3 {[%emt 0:00:26]} Qh3 {
[%emt 0:01:03]} 15. Re4 {[%emt 0:01:09]} Bb7 {[%emt 0:07:13]} 16. Nd2 {[%emt 0:
00:00]} c5 {[%emt 0:06:20]} 17. Rh4 {[%emt 0:06:03]} Qe6 {[%emt 0:21:59]} 18.
Qh5 {[%emt 0:16:04]} Qe1+ {[%emt 0:05:33]} 19. Nf1 {[%emt 0:00:09]} Nf6 {
[%emt 0:01:14]} 20. Qd1 {[%emt 0:01:58]} Qe7 {[%emt 0:06:07]} 21. Ne3 {[%emt 0:
00:00]} Qd7 {[%emt 0:04:17]} 22. d4 {[%emt 0:03:53]} Rad8 {[%emt 0:07:34]} 23.
Bc2 {[%emt 0:10:46]} h6 {[%emt 0:06:18]} 24. d5 {[%emt 0:03:10]} Be7 {[%emt 0:
00:00]} 25. Nf5 {[%emt 0:08:10]} Nxd5 {[%emt 0:01:59]} 26. Qg4 {[%emt 0:06:30]}
g6 {[%emt 0:04:52]} 27. Nxh6+ {[%emt 0:00:04]} Kg7 {[%emt 0:00:09]} 28. Nf5+ {
[%emt 0:00:12]} Kg8 {[%emt 0:00:52]} 29. Bg5 {[%emt 0:02:52]} f6 {[%emt 0:00:
00]} 30. Bh6 {[%emt 0:01:16]} g5 {[%emt 0:01:22]} 31. Bxf8 {[%emt 0:01:15]}
Bxf8 {[%emt 0:00:01]} 32. Nh6+ {[%emt 0:01:14]} Kg7 {[%emt 0:02:49]} 33. Qxd7+
{[%emt 0:00:07]} Rxd7 {[%emt 0:00:08]} 34. Nf5+ {[%emt 0:00:04]} Kg8 {[%emt 0:
00:00]} 35. Re4 {[%emt 0:00:21]} Ne7 {[%emt 0:01:11]} 36. Nxe7+ {[%emt 0:01:05]
} Bxe7 {[%emt 0:00:03]} 37. Re2 {[%emt 0:00:08]} c4 {[%emt 0:00:36]} 38. Rd1 {
[%emt 0:00:23]} Rc7 {[%emt 0:00:21]} 39. Be4 {[%emt 0:00:10]} Bc8 {[%emt 0:00:
00]} 40. Kg2 {[%emt 0:01:01]} f5 {[%emt 0:00:27]} 41. Bd5+ {[%emt 0:30:23]} Kg7
{[%emt 0:30:08]} 42. f3 {[%emt 0:01:08]} Bc5 {[%emt 0:01:45]} 43. Be6 {[%emt 0:
00:00]} Re7 {[%emt 0:00:35]} 44. Rde1 {[%emt 0:00:12]} Bb7 {[%emt 0:00:47]} 45.
Bxf5 {[%emt 0:00:19]} Rf7 {[%emt 0:00:26]} 46. Be4 {[%emt 0:00:08]} Bc8 {
[%emt 0:00:45]} 47. Rd1 {[%emt 0:00:38]} g4 {[%emt 0:00:45]} 48. f4 {[%emt 0:
00:00]} a5 {[%emt 0:01:14]} 49. Rd5 {[%emt 0:00:52]} Ba7 {[%emt 0:01:13]} 50.
Rxb5 {[%emt 0:00:25]} Re7 {[%emt 0:00:06]} 51. Rxa5 {[%emt 0:01:20]} Bb7 {
[%emt 0:00:18]} 52. Re5 {[%emt 0:00:10]} 1-0

[Event "44th Chess Olympiad Open 2022"]
[Site "Chennai"]
[Date "2022.08.01"]
[Round "4.44"]
[White "Deng, Yu Dong Michael"]
[Black "Henderson de La Fuente, Lance"]
[Result "1/2-1/2"]
[WhiteElo "2028"]
[BlackElo "2490"]
[Annotator "TA"]
[PlyCount "200"]
[EventDate "2022.??.??"]
[TimeControl "60"]

{[%evp 21,200,0,-6,-15,-10,-2,-3,-6,-5,-3,0,-4,0,-3,-9,0,0,0,0,0,0,0,0,0,0,0,0,
0,0,0,14,0,3,0,7,6,7,0,0,0,0,0,0,0,0,0,0,0,0,-15,-10,-22,0,-14,0,-8,-8,-10,-16,
-60,-38,-37,-38,-40,-31,-44,0,-12,0,-10,-11,-11,0,0,0,0,0,0,0,0,0,0,0,0,0,0,0,
0,0,0,0,0,0,0,0,0,0,0,0,0,0,0,0,0,0,0,0,0,0,0,0,0,0,0,0,0,0,0,0,0,0,0,0,0,0,0,
0,0,0,0,0,0,0,0,0,0,0,0,0,0,0,0,0,0,0,0,0,0,0,0,0,0,0,0,0,0,0,0,0,0,0,0,0,0,0,
0,0,0,0,0,0,0,0,0,0,0,0,0,0,0,8]} 1. d4 {[%emt 0:00:03]} d5 {[%emt 0:00:17]} 2.
c4 {[%emt 0:00:03]} e6 {[%emt 0:00:07]} 3. Nc3 {[%emt 0:00:04]} c6 {[%emt 0:00:
00]} 4. e3 {[%emt 0:00:55]} Nf6 {[%emt 0:00:29]} 5. Nf3 {[%emt 0:00:02]} Nbd7 {
[%emt 0:00:14]} 6. Bd3 {[%emt 0:01:04]} dxc4 {[%emt 0:01:34]} 7. Bxc4 {[%emt 0:
00:00]} b5 {[%emt 0:00:23]} 8. Bd3 {[%emt 0:00:04]} a6 {[%emt 0:04:38]} 9. O-O
{[%emt 0:00:08]} c5 {[%emt 0:01:03]} 10. Qe2 {[%emt 0:04:24]} Bb7 {[%emt 0:00:
00]} 11. Rd1 {[%emt 0:03:14]} Qb8 {[%emt 0:08:17]} 12. dxc5 {[%emt 0:14:59]
D48: Semi-Slav: Meran System: 7...b5 8 Bd3 a6.} Bxc5 {[%emt 0:06:04]} 13. b3 {
[%emt 0:08:21] [#]} Bd6 $146 {[%emt 0:02:55]} ({Predecessor:} 13... Ne5 14.
Bxb5+ axb5 15. Nxe5 O-O 16. Ng4 Nxg4 17. Qxg4 Bd6 18. h3 f5 19. Qe2 Rf6 20. Bb2
Rg6 {0-1 (36) Vescovi,G (2490)-Kaidanov,G (2590) New York 1997}) 14. h3 {
[%emt 0:00:29]} O-O {[%emt 0:04:37]} 15. Bb2 {[%emt 0:01:17]} Nc5 {[%emt 0:00:
00]} 16. Bc2 {[%emt 0:03:34]} Bxf3 {[%emt 0:08:27]} 17. Qxf3 {[%emt 0:00:13]}
Bh2+ {[%emt 0:00:14]} 18. Kh1 {[%emt 0:01:19] [#] Threatens to win with g3.}
Be5 {[%emt 0:00:07]} 19. Rab1 {[%emt 0:05:02]} Rc8 {[%emt 0:04:41]} 20. Ne4 {
[%emt 0:07:42]} Bxb2 {[%emt 0:01:42]} 21. Rxb2 {[%emt 0:03:59]} Ncxe4 {[%emt 0:
00:00]} 22. Bxe4 {[%emt 0:00:11]} Qe5 {[%emt 0:01:34][%csl Yb2,Ye4]} 23. Bxa8 {
[%emt 0:01:36]} Qxb2 {[%emt 0:00:07]} 24. Bb7 {[%emt 0:04:39][%csl Ya6,Yc8]}
Rf8 {[%emt 0:08:39]} 25. Bxa6 {[%emt 0:02:55]} Nd5 {[%emt 0:01:39]} 26. e4 {
[%emt 0:07:01]} ({Don't play} 26. Bxb5 Nc3 27. a4 Nxd1 28. Qxd1 Qxf2 $17) 26...
Nc3 {[%emt 0:00:49]} 27. Rd3 {[%emt 0:03:32]} b4 {[%emt 0:00:50]} 28. Bc4 {
[%emt 0:00:48]} Qxa2 {[%emt 0:00:35]} 29. Rd7 {[%emt 0:02:19][%cal Yf3f7] [#]
Threatening mate with Qxf7+!} Qb1+ {[%emt 0:01:17]} 30. Kh2 {[%emt 0:00:02]
[%cal Yf3f7] White wants to mate with Qxf7+!} Qxe4 {[%emt 0:00:30]} 31. Qxe4 {
[%emt 0:00:15]} Nxe4 $11 {[%emt 0:00:05] Endgame KRB-KRN} 32. f3 {[%emt 0:00:
17]} Nf6 {[%emt 0:02:06]} 33. Rb7 {[%emt 0:00:12]} Rd8 {[%emt 0:00:00]} 34.
Rxb4 {[%emt 0:04:06]} g5 {[%emt 0:00:17]} 35. Ra4 {[%emt 0:02:07]} Rd2 {
[%emt 0:02:43]} 36. b4 {[%emt 0:01:02]} Rb2 {[%emt 0:00:29]} 37. b5 {[%emt 0:
00:00]} h5 {[%emt 0:00:23]} 38. Ra8+ {[%emt 0:08:30]} Kg7 {[%emt 0:00:07]} 39.
Ra7 {[%emt 0:00:25]} Kf8 {[%emt 0:00:35]} 40. Ra5 {[%emt 0:07:35][%cal Yb5b6]}
Rb4 {[%emt 0:05:08]} 41. Bd3 {[%emt 0:31:15]} Nd5 {[%emt 0:37:44]} 42. Be4 {
[%emt 0:02:57]} Nb6 {[%emt 0:10:11]} 43. Bc6 {[%emt 0:00:00]} Rb2 {[%emt 0:00:
00]} 44. Ra6 {[%emt 0:00:00] The position is equal.} Nc4 {[%emt 0:00:00]} 45.
Ra4 {[%emt 0:00:00]} Ne3 {[%emt 0:00:00]} 46. f4 {[%emt 0:00:00]} g4 {[%emt 0:
00:00]} 47. hxg4 {[%emt 0:00:00]} hxg4 {[%emt 0:00:00]} 48. Kg3 {[%emt 0:00:00]
} Rb3 {[%emt 0:00:00]} 49. Ra6 {[%emt 0:00:00]} Kg7 {[%emt 0:00:00]} 50. b6 {
[%emt 0:00:00]} Nc4+ {[%emt 0:00:00]} 51. Kxg4 {[%emt 0:00:00] Strongly
threatening b7.} Nxb6 {[%emt 0:00:00]} 52. Ra7 {[%emt 0:00:00]} Nc4 {[%emt 0:
00:00]} 53. Bf3 {[%emt 0:00:00]} Ne3+ {[%emt 0:00:00]} 54. Kh3 {[%emt 0:00:00]}
Nd5 {[%emt 0:03:02]} 55. Ra4 {[%emt 0:00:00]} Nc3 {[%emt 0:00:56]} 56. Rc4 {
[%emt 0:00:00]} Nd5 {[%emt 0:00:22]} 57. Kh4 {[%emt 0:00:00]} Ne3 {[%emt 0:00:
00]} 58. Ra4 {[%emt 0:00:03]} Nf5+ {[%emt 0:00:37]} 59. Kh3 {[%emt 0:00:18]}
Kf6 {[%emt 0:00:38]} 60. Kh2 {[%emt 0:01:25]} Ne3 {[%emt 0:00:16]} 61. g4 {
[%emt 0:02:13]} Rb2+ {[%emt 0:00:26]} 62. Kh3 {[%emt 0:02:13]} Kg7 {[%emt 0:00:
00]} 63. Ra3 {[%emt 0:00:26]} Nc2 {[%emt 0:00:48]} 64. Rc3 {[%emt 0:00:08]} Nd4
{[%emt 0:00:12]} 65. Kg3 {[%emt 0:00:14]} Rb4 {[%emt 0:00:11]} 66. Ra3 {
[%emt 0:00:17]} Nb3 {[%emt 0:00:18]} 67. Bd1 {[%emt 0:00:39]} Nd2 {[%emt 0:00:
00]} 68. Bf3 {[%emt 0:00:15]} Rb2 {[%emt 0:00:22] ( -> ...Nf1+)} 69. Bg2 {
[%emt 0:00:32] Prevents Nf1+.} Rc2 {[%emt 0:00:59]} 70. Rd3 {[%emt 0:00:11]}
Rb2 {[%emt 0:00:16]} 71. Ra3 {[%emt 0:00:17]} Nc4 {[%emt 0:00:04]} 72. Rc3 {
[%emt 0:00:12]} Nd6 {[%emt 0:00:13]} 73. Rd3 {[%emt 0:00:15]} Nc8 {[%emt 0:00:
00]} 74. Rc3 {[%emt 0:00:40]} Ne7 {[%emt 0:00:33]} 75. Ra3 {[%emt 0:00:18]} Kf6
{[%emt 0:00:35]} 76. Be4 {[%emt 0:00:21]} Rb4 {[%emt 0:00:09]} 77. Re3 {
[%emt 0:00:19]} Rd4 {[%emt 0:00:15]} 78. Kf3 {[%emt 0:00:16]} Rb4 {[%emt 0:00:
00]} 79. Kg3 {[%emt 0:00:02]} Nc8 {[%emt 0:00:06]} 80. Bg2 {[%emt 0:00:16]} Nd6
{[%emt 0:00:15]} 81. Rd3 {[%emt 0:00:14]} Nb5 {[%emt 0:00:13]} 82. Bf3 {
[%emt 0:00:44]} Nd4 {[%emt 0:00:11]} 83. Ra3 {[%emt 0:00:24]} Kg6 {[%emt 0:00:
00]} 84. Be4+ {[%emt 0:01:05]} Kh6 {[%emt 0:00:22]} 85. Bf3 {[%emt 0:00:05]} f6
{[%emt 0:00:40][%cal Yf7f6,Yf6f5]} 86. Re3 {[%emt 0:00:31]} Kg7 {[%emt 0:00:33]
} 87. Ra3 {[%emt 0:00:46]} Rc4 {[%emt 0:03:11]} 88. Ra7+ {[%emt 0:00:45]} Kg6 {
[%emt 0:00:15] aiming for ...Rc3.} 89. Ra3 {[%emt 0:00:03] Against Rc3} f5 {
[%emt 0:01:43]} 90. Rd3 {[%emt 0:00:36]} Kf6 {[%emt 0:00:29]} 91. Ra3 {[%emt 0:
00:45]} Rb4 {[%emt 0:00:16]} 92. Rd3 {[%emt 0:00:17]} e5 {[%emt 0:02:35]} 93.
fxe5+ {[%emt 0:00:41]} Kxe5 {[%emt 0:00:07]} 94. gxf5 {[%emt 0:00:06]} Nxf5+ {
[%emt 0:00:08]} 95. Kf2 {[%emt 0:00:26]} Rb2+ {[%emt 0:00:00]} 96. Be2 {
[%emt 0:00:10]} Nd4 {[%emt 0:00:08]} 97. Re3+ {[%emt 0:00:08]} Kf4 {[%emt 0:00:
05]} 98. Re8 {[%emt 0:00:08]} Rxe2+ {[%emt 0:00:06]} 99. Rxe2 {[%emt 0:00:04]}
Nxe2 {[%emt 0:00:02]} 100. Kxe2 {[%emt 0:00:03]} Ke5 {[%emt 0:00:00] Weighted
Error Value: White=0.03 (flawless) /Black=0.03 (flawless)} 1/2-1/2